fUSD/lending_fUSD_20260305
["ID","MTS","AMOUNT","RATE_DAILY","PERIOD"]
[407751252,1772753440667,-48499.7054058,0.00018165,2]
[407751253,1772753440676,-2098.0,0.00018172,2]
[407751254,1772753440686,-7678.39873135,0.00018173,2]
[407751255,1772753440695,-420.0,0.00018235,2]
[407751256,1772753440705,-1483.95685823,0.00018244,2]
[407751257,1772753440716,-250.0,0.00018244,2]
[407751258,1772753440726,-250.0,0.00018244,2]
[407751259,1772753440736,-250.0,0.00018244,2]
[407751260,1772753440745,-250.0,0.00018244,2]
[407751261,1772753440755,-250.0,0.00018244,2]
[407751262,1772753440764,-747.8093786,0.00018244,2]
[407751263,1772753440773,-250.0,0.00018244,2]
[407751264,1772753440783,-174.61919141,0.00018244,2]
[407751265,1772753440792,-188.04392138,0.00018244,2]
[407751266,1772753440801,-599.60298507,0.00018244,2]
[407751267,1772753440811,-500.0,0.00018244,2]
[407751268,1772753440820,-500.0,0.00018244,2]
[407751269,1772753440829,-205.79172239,0.00018244,2]
[407751270,1772753440839,-500.0,0.00018244,2]
[407751271,1772753440847,-500.0,0.00018244,2]
[407751272,1772753440857,-500.0,0.00018244,2]
[407751273,1772753440867,-500.0,0.00018244,2]
[407751274,1772753440876,-500.0,0.00018244,2]
[407751275,1772753440885,-500.0,0.00018244,2]
[407751276,1772753440895,-500.0,0.00018244,2]
[407751277,1772753440904,-500.0,0.00018244,2]
[407751278,1772753440913,-1000.0,0.00018244,2]
[407751279,1772753440926,-693.3919763,0.00018244,2]
[407751280,1772753440935,-500.0,0.00018244,2]
[407751281,1772753440946,-500.0,0.00018244,2]
[407751282,1772753440956,-500.0,0.00018244,2]
[407751283,1772753440965,-500.0,0.00018244,2]
[407751284,1772753440974,-500.0,0.00018244,2]
[407751285,1772753440984,-262.90206542,0.00018244,2]
[407751286,1772753440994,-209.40437685,0.00018244,2]
[407751287,1772753441003,-269.917619,0.00018244,2]
[407751288,1772753441012,-743.50770149,0.00018244,2]
[407751289,1772753441022,-741.77255345,0.00018285,2]
[407751290,1772753441031,-164.6,0.00018285,2]
[407751291,1772753441041,-719.04747942,0.00018299,2]
[407751292,1772753441051,-1680.0,0.00018326,2]
[407751293,1772753441060,-2094.0,0.0001834,2]
[407751294,1772753441070,-1097.51,0.00018353,5]
[407751295,1772753441079,-745.65223616,0.00018354,2]
[407751296,1772753441090,-1000.0,0.00018356,7]
[407751297,1772753441100,-2500.0,0.00018359,2]
[407751298,1772753441109,-5000.0,0.00018359,2]
[407751299,1772753441118,-300.0,0.0001836,2]
[407751300,1772753441128,-250.0,0.0001836,2]
[407751301,1772753441138,-199.81,0.00018366,2]
[407751302,1772753441149,-773.2413689,0.00018409,2]
[407751303,1772753441158,-161.15,0.0001841,2]
[407751304,1772753441167,-162.48080866,0.00018419,2]
[407751305,1772753441176,-801.85129955,0.00018464,2]
[407751306,1772753441186,-4893.8629012,0.00018474,2]
[407751307,1772753441196,-151.0,0.00018518,2]
[407751308,1772753441205,-151.0,0.00018518,2]
[407751309,1772753441214,-151.0,0.00018518,2]
[407751310,1772753441224,-151.0,0.00018518,2]
[407751311,1772753441234,-151.0,0.00018518,2]
[407751312,1772753441243,-7678.39873135,0.00018518,2]
[407751313,1772753441252,-831.51979763,0.00018519,2]
[407751314,1772753441261,-220.556623,0.00018568,2]
[407751315,1772753441271,-220.556623,0.00018568,2]
[407751316,1772753441281,-220.556623,0.00018568,2]
[407751317,1772753441290,-220.556623,0.00018568,2]
[407751318,1772753441300,-305.075337,0.00018568,2]
[407751319,1772753441309,-305.075337,0.00018568,2]
[407751320,1772753441318,-305.075337,0.00018568,2]
[407751321,1772753441327,-305.075337,0.00018568,2]
[407751322,1772753441631,-151.0,0.00018574,2]
[407751323,1772753441641,-862.28603014,0.00018574,2]
[407751324,1772753441651,-2881.7,0.00018574,2]
[407751325,1772753441660,-5181.15,0.00018574,2]
[407751326,1772753441669,-151.0,0.0001859,2]
[407751327,1772753441678,-1034.74,0.00018596,2]
[407751328,1772753441687,-151.0,0.00018596,2]
[407751329,1772753441697,-1062.00844867,0.000186,2]
[407751330,1772753441707,-894.19061326,0.00018629,2]
[407751331,1772753441715,-1065.86101618,0.00018656,2]
[407751332,1772753441726,-161.15,0.0001868,2]
[407751333,1772753441736,-927.27566595,0.00018684,2]
[407751334,1772753441746,-162.48080864,0.00018715,2]
[407751335,1772753441756,-160.0,0.0001872,2]
[407751336,1772753441766,-151.0,0.00018735,2]
[407751337,1772753441776,-151.0,0.00018735,2]
[407751338,1772753441785,-2082.0,0.00018735,2]
[407751339,1772753441794,-961.58486559,0.00018739,2]
[407751340,1772753441804,-181.08010149,0.00018792,2]
[407751341,1772753441814,-1000.0,0.00018792,2]
[407751342,1772753441823,-500.0,0.00018792,2]
[407751343,1772753441833,-198.56673926,0.00018792,2]
[407751344,1772753441842,-997.16350561,0.00018794,2]
[407751345,1772753441852,-4893.8629012,0.0001883,2]
[407751346,1772753441861,-7678.39873135,0.00018864,2]
[407751347,1772753441870,-161.15,0.0001895,2]
[407751348,1772753441880,-333.75,0.0001899,2]
[407751349,1772753441888,-500.0,0.00019005,2]
[407751350,1772753441899,-200.0,0.00019005,2]
[407751351,1772753441907,-162.48080864,0.00019011,2]
[407751352,1772753441916,-169.39,0.00019034,2]
[407751353,1772753441926,-164.6,0.00019039,2]
[407751354,1772753441935,-160.0,0.0001904,2]
[407751355,1772753441944,-366.03872029,0.00019115,2]
[407751356,1772753441953,-151.0,0.0001914,2]
[407751357,1772753441963,-151.0,0.00019141,2]
[407751358,1772753441972,-151.0,0.00019141,2]
[407751359,1772753441980,-666.0,0.00019143,2]
[407751360,1772753441990,-151.0,0.00019144,2]
[407751361,1772753441999,-151.0,0.00019144,2]
[407751362,1772753442011,-151.0,0.00019144,2]
[407751363,1772753442019,-151.0,0.00019144,2]
[407751364,1772753442029,-220.556623,0.00019144,2]
[407751365,1772753442039,-220.556623,0.00019144,2]
[407751366,1772753442048,-220.556623,0.00019144,2]
[407751367,1772753442057,-162.75815449,0.00019144,2]
[407751380,1772753442673,-73490.53010777,0.00016791,2]
[407751384,1772753443017,-125.59852237,0.00016791,2]
[407751385,1772753443030,-5077.48810665,0.00016791,2]
[407751394,1772753490965,250.0,0.00015,2]
[407751396,1772753499663,600.37,0.00015471,2]
[407751397,1772753520296,2611.28,0.00015471,2]
[407751398,1772753529307,1422.8,0.00016291,2]
[407751399,1772753535507,500.0,0.00012,2]
[407751400,1772753535620,500.0,0.00012,2]
[407751401,1772753535740,908.93030774,0.00012,2]
[407751402,1772753535853,500.0,0.00012,2]
[407751403,1772753535994,500.0,0.00011291,2]
[407751404,1772753536379,500.0,0.00011291,2]
[407751405,1772753536749,500.0,0.00012,2]
[407751406,1772753536851,500.0,0.00012,2]
[407751407,1772753537082,500.0,0.00011291,2]
[407751408,1772753540804,500.0,0.00012,2]
[407751409,1772753541005,500.0,0.00012,2]
[407751410,1772753541135,500.0,0.00012,2]
[407751411,1772753541529,693.35422505,0.00011291,2]
[407751412,1772753544583,500.0,0.00012,2]
[407751413,1772753544967,500.0,0.00012,2]
[407751414,1772753545416,500.0,0.00012,2]
[407751415,1772753545741,500.0,0.00012,2]
[407751416,1772753545980,633.34810654,0.00011291,2]
[407751417,1772753546624,656.00082149,0.00011291,2]
[407751418,1772753551515,509.0,0.00014,2]
[407751419,1772753605683,200.0,0.00016049,2]
[407751421,1772753663876,1504.31,0.00013136,2]
[407751422,1772753676799,1436.21,0.00015471,2]
[407751423,1772753835401,1407.03,0.00016291,2]
[407751427,1772753887453,5290.74,0.00015906,2]
[407751428,1772753914149,739.62,0.00015773,2]
[407751429,1772753957863,1500.0,0.00015734,2]
[407751430,1772754059753,166.66,0.00016172,2]
[407751431,1772754220029,157.0741096,0.00016201,2]
[407751432,1772754326481,200.0,0.0001574,2]
[407751433,1772754442683,1502.46,0.00015685,2]
[407751434,1772754442952,1502.46,0.00016077,2]
[407751436,1772754451483,-2875.36,0.000163,3]
[407751437,1772754451504,-189.03928642,0.0001635,2]
[407751438,1772754451528,-1591.31376098,0.0001635,2]
[407751439,1772754451548,-3191.3017234,0.000164,2]
[407751440,1772754451568,-1502.46,0.00016469,2]
[407751441,1772754451588,-300.0,0.00016494,2]
[407751442,1772754451607,-4388.40202739,0.00016495,2]
[407751443,1772754451627,-600.0,0.000165,6]
[407751444,1772754451647,-157.0741096,0.00016558,2]
[407751445,1772754451670,-739.62,0.00016562,2]
[407751446,1772754451691,-1200.0,0.00016588,2]
[407751447,1772754451712,-277.8803,0.0001659,2]
[407751448,1772754451732,-550.0,0.0001659,2]
[407751449,1772754451752,-3989.03237747,0.00016591,2]
[407751450,1772754451774,-1000.0,0.00016591,2]
[407751451,1772754451795,-2781.1927,0.00016591,2]
[407751452,1772754451815,-5834.0748,0.00016591,2]
[407751453,1772754451835,-2500.0,0.00016591,2]
[407751454,1772754451854,-162.48080866,0.00016591,2]
[407751455,1772754451875,-1462.8,0.00016591,2]
[407751456,1772754451894,-164.677,0.00016591,2]
[407751457,1772754451915,-11898.19064473,0.00016591,2]
[407751458,1772754451936,-1062.00844869,0.00016591,2]
[407751459,1772754451958,-7301.40716626,0.00016591,2]
[407751460,1772754451979,-5798.32399393,0.00016591,2]
[407751461,1772754452000,-1200.0,0.000166,6]
[407751462,1772754452020,-5674.34664541,0.00016658,2]
[407751463,1772754548092,-206.81105055,0.00016491,2]
[407751464,1772754548112,-10828.2048,0.0001659,2]
[407751465,1772754548132,-1000.0,0.00016591,2]
[407751466,1772754548153,-2500.0,0.00016591,2]
[407751467,1772754548173,-1711.65335459,0.00016658,2]
[407751468,1772754548192,-4548.448,0.00016658,2]
[407751469,1772754548211,-4734.0,0.00016658,2]
[407751470,1772754548231,-550.0,0.0001668,2]
[407751471,1772754548251,-151.0,0.00016681,2]
[407751472,1772754548271,-500.0,0.00016681,2]
[407751473,1772754548291,-151.0,0.00016681,2]
[407751474,1772754548310,-500.0,0.00016681,2]
[407751475,1772754548330,-151.0,0.00016681,2]
[407751476,1772754548350,-500.0,0.00016681,2]
[407751477,1772754548371,-151.0,0.00016681,2]
[407751478,1772754548390,-500.0,0.00016681,2]
[407751479,1772754548411,-151.0,0.00016681,2]
[407751480,1772754548431,-500.0,0.00016681,2]
[407751481,1772754548451,-151.0,0.00016681,2]
[407751482,1772754548470,-500.0,0.00016681,2]
[407751483,1772754548492,-151.0,0.00016681,2]
[407751484,1772754548513,-500.0,0.00016681,2]
[407751485,1772754548534,-151.0,0.00016681,2]
[407751486,1772754548555,-151.0,0.00016681,2]
[407751487,1772754548575,-500.0,0.00016681,2]
[407751488,1772754548596,-151.0,0.00016681,2]
[407751489,1772754548616,-500.0,0.00016681,2]
[407751490,1772754548637,-151.0,0.00016681,2]
[407751491,1772754548658,-500.0,0.00016681,2]
[407751492,1772754548679,-500.0,0.00016681,2]
[407751493,1772754548703,-500.0,0.00016681,2]
[407751494,1772754548723,-200.0,0.00016681,2]
[407751495,1772754548744,-500.0,0.00016681,2]
[407751496,1772754548765,-500.0,0.00016681,2]
[407751497,1772754548786,-500.0,0.00016681,2]
[407751498,1772754548807,-500.0,0.00016681,2]
[407751499,1772754548827,-500.0,0.00016681,2]
[407751500,1772754548847,-500.0,0.00016681,2]
[407751501,1772754548868,-500.0,0.00016681,2]
[407751502,1772754548891,-500.0,0.00016681,2]
[407751503,1772754548912,-500.0,0.00016681,2]
[407751504,1772754548935,-500.0,0.00016681,2]
[407751505,1772754548955,-151.0,0.00016681,2]
[407751506,1772754548975,-151.0,0.00016681,2]
[407751507,1772754548995,-151.0,0.00016681,2]
[407751508,1772754549014,-151.0,0.00016681,2]
[407751509,1772754549034,-151.0,0.00016681,2]
[407751510,1772754549053,-151.0,0.00016681,2]
[407751511,1772754549073,-151.0,0.00016681,2]
[407751512,1772754549411,-151.0,0.00016681,2]
[407751513,1772754549433,-151.0,0.00016681,2]
[407751514,1772754549454,-151.0,0.00016681,2]
[407751515,1772754549475,-151.0,0.00016681,2]
[407751516,1772754549494,-151.0,0.00016681,2]
[407751517,1772754549514,-151.0,0.00016681,2]
[407751518,1772754549537,-151.0,0.00016681,2]
[407751519,1772754549559,-151.0,0.00016681,2]
[407751520,1772754549580,-151.0,0.00016681,2]
[407751521,1772754549601,-151.0,0.00016681,2]
[407751522,1772754549621,-151.0,0.00016681,2]
[407751523,1772754549642,-151.0,0.00016681,2]
[407751524,1772754549664,-151.0,0.00016681,2]
[407751525,1772754549686,-151.0,0.00016681,2]
[407751526,1772754549710,-210.88260812,0.00016681,2]
[407751527,1772754549730,-301.03870298,0.0001669,2]
[407751528,1772754549757,-500.0,0.0001669,2]
[407751529,1772754549783,-500.0,0.0001669,2]
[407751530,1772754549808,-500.0,0.0001669,2]
[407751531,1772754549832,-500.0,0.0001669,2]
[407751532,1772754549856,-204.17364309,0.0001669,2]
[407751533,1772754560162,-295.82635691,0.0001669,2]
[407751534,1772754560188,-500.0,0.0001669,2]
[407751535,1772754560606,-500.0,0.0001669,2]
[407751536,1772754560633,-500.0,0.0001669,2]
[407751537,1772754560657,-500.0,0.0001669,2]
[407751538,1772754560682,-463.24856316,0.0001669,2]
[407751539,1772754560710,-500.0,0.0001669,2]
[407751540,1772754560735,-500.0,0.0001669,2]
[407751541,1772754560759,-242.85941558,0.0001669,2]
[407751542,1772754560780,-616.22460641,0.0001669,2]
[407751543,1772754560806,-500.0,0.0001669,2]
[407751544,1772754560831,-500.0,0.0001669,2]
[407751545,1772754560856,-500.0,0.0001669,2]
[407751546,1772754560881,-500.0,0.0001669,2]
[407751547,1772754560905,-93.84145794,0.0001669,2]
[407751549,1772754631648,-10708.37158032,0.0001649,2]
[407751551,1772754631659,-1000.0,0.00016556,2]
[407751554,1772754631668,-300.0,0.00016557,2]
[407751557,1772754631677,-1200.0,0.00016557,2]
[407751559,1772754631687,-976907.4568,0.00016558,2]
[407751560,1772754631696,-6748.378,0.0001659,2]
[407751562,1772754631706,-406.15854206,0.0001669,2]
[407751563,1772754631716,-500.0,0.0001669,2]
[407751564,1772754631729,-500.0,0.0001669,2]
[407751565,1772754631738,-500.0,0.0001669,2]
[407751566,1772754631748,-167.72445645,0.0001669,2]
[407751567,1772754631758,-500.0,0.0001669,2]
[407751568,1772754631770,-500.0,0.0001669,2]
[407751569,1772754631780,-500.0,0.0001669,2]
[407751570,1772754631791,-500.0,0.0001669,2]
[407751571,1772754631801,-500.0,0.0001669,2]
[407751572,1772754631810,-500.0,0.0001669,2]
[407751573,1772754631819,-500.0,0.0001669,2]
[407751574,1772754631828,-500.0,0.0001669,2]
[407751575,1772754631838,-500.0,0.0001669,2]
[407751576,1772754631847,-500.0,0.0001669,2]
[407751577,1772754631856,-500.0,0.0001669,2]
[407751578,1772754631866,-666.0,0.0001669,2]
[407751579,1772754631875,-300.0,0.0001669,2]
[407751580,1772754631884,-670.86732423,0.0001669,2]
[407751581,1772754631894,-500.0,0.0001669,2]
[407751582,1772754631903,-500.0,0.0001669,2]
[407751583,1772754631913,-1600.0,0.0001669,2]
[407751584,1772754631922,-184.86006208,0.0001669,2]
[407751586,1772754631931,-500.0,0.0001669,2]
[407751588,1772754631941,-500.0,0.0001669,2]
[407751589,1772754631950,-500.0,0.0001669,2]
[407751591,1772754631959,-500.0,0.0001669,2]
[407751593,1772754631969,-500.0,0.0001669,2]
[407751595,1772754631978,-1111.92,0.0001669,2]
[407751597,1772754631988,-500.0,0.0001669,2]
[407751599,1772754631997,-500.0,0.0001669,2]
[407751601,1772754632007,-1097.51,0.0001669,2]
[407751602,1772754632017,-1097.51,0.0001669,3]
[407751603,1772754632027,-1097.51,0.0001669,4]
[407751604,1772754632036,-1097.51,0.0001669,5]
[407751605,1772754632045,-1097.51,0.0001669,6]
[407751606,1772754632055,-1097.51,0.0001669,7]
[407751607,1772754632064,-1097.51,0.0001669,8]
[407751608,1772754632074,-1097.51,0.0001669,9]
[407751609,1772754632083,-1097.51,0.0001669,10]
[407751610,1772754632093,-1097.51,0.0001669,11]
[407751611,1772754632102,-1800.0,0.000167,6]
[407751612,1772754632111,-166.66,0.00016705,2]
[407751613,1772754632122,-748.73821311,0.00016712,2]
[407751614,1772754632132,-108542.69863843,0.00016736,2]
[407751615,1772754632141,-335.0,0.00016741,2]
[407751616,1772754632152,-601.0,0.00016749,2]
[407751617,1772754632162,-19273.3340058,0.00016756,2]
[407751618,1772754632171,-583.79731063,0.00016766,2]
[407751619,1772754632182,-500.0,0.00016766,2]
[407751620,1772754632191,-151.0,0.00016788,2]
[407751621,1772754632201,-1097.51,0.0001679,12]
[407751622,1772754632211,-1097.51,0.0001679,13]
[407751623,1772754632221,-1097.51,0.0001679,14]
[407751624,1772754632233,-1097.51,0.0001679,15]
[407751625,1772754632243,-1097.51,0.0001679,16]
[407751626,1772754632254,-186.23,0.0001679,2]
[407751627,1772754632265,-32906.2197,0.00016791,2]
[407751628,1772754632274,-210.88260812,0.00016797,2]
[407751629,1772754632285,-2500.0,0.000168,6]
[407751630,1772754632295,-43819.75587705,0.00016807,2]
[407751631,1772754632305,-367.0,0.00016836,2]
[407751632,1772754632315,-1502.46,0.00016862,2]
[407751633,1772754632324,-1257.0,0.00016869,2]
[407751634,1772754632334,-307.12939269,0.00016885,2]
[407751635,1772754632345,-1292.0,0.00016899,2]
[407751636,1772754632355,-3100.0,0.000169,6]
[407751637,1772754632365,-1420.51608785,0.000169,2]
[407751638,1772754632375,-7301.40716624,0.00016958,2]
[407751639,1772754632385,-1111.92,0.00016964,2]
[407751640,1772754632395,-300.0,0.00017,2]
[407751641,1772754632405,-500.0,0.0001704,2]
[407751642,1772754632419,-186.23,0.0001706,2]
[407751643,1772754632428,-267.18,0.0001722,2]
[407751644,1772754632437,-200.0,0.00017229,2]
[407751645,1772754632447,-1111.92,0.00017238,2]
[407751646,1772754632795,-166.66,0.00017239,2]
[407751647,1772754632825,-265.0,0.00017249,2]
[407751648,1772754632835,-162.48080864,0.00017253,2]
[407751649,1772754632844,-196.33,0.00017253,2]
[407751650,1772754632853,-1502.46,0.00017254,2]
[407751651,1772754632863,-210.84861,0.0001727,2]
[407751652,1772754632872,-203.14,0.00017289,2]
[407751653,1772754632882,-7301.40716624,0.00017324,2]
[407751654,1772754632891,-186.23,0.0001733,2]
[407751655,1772754632900,-1399.2675858,0.00017342,2]
[407751656,1772754632909,-1371.8610117,0.00017342,2]
[407751657,1772754632919,-739.62,0.0001735,2]
[407751658,1772754632927,-151.0,0.00017439,2]
[407751659,1772754632936,-1097.51,0.00017441,17]
[407751660,1772754632946,-1097.51,0.00017441,18]
[407751661,1772754632955,-1097.51,0.00017441,19]
[407751662,1772754632964,-1097.51,0.00017441,20]
[407751663,1772754632973,-155.0,0.00017441,2]
[407751664,1772754632983,-43274.1006851,0.00017442,2]
[407751665,1772754632992,-13661.925574,0.00017442,2]
[407751666,1772754633002,-872493.4244207,0.00017442,2]
[407751667,1772754633012,-151.0,0.00017442,2]
[407751668,1772754633021,-10398.4806605,0.00017442,2]
[407751669,1772754633031,-151.0,0.00017442,2]
[407751670,1772754633040,-3209.4930088,0.00017442,2]
[407751671,1772754633049,-151.0,0.00017442,2]
[407751672,1772754633062,-151.0,0.00017442,2]
[407751673,1772754633072,-151.0,0.00017442,2]
[407751674,1772754633082,-151.0,0.00017442,2]
[407751675,1772754633093,-151.0,0.00017442,2]
[407751676,1772754633104,-52047.8488177,0.00017442,2]
[407751677,1772754633114,-151.0,0.00017442,2]
[407751678,1772754633123,-151.0,0.00017442,2]
[407751679,1772754633132,-2748.8600209,0.00017442,2]
[407751680,1772754633141,-151.0,0.00017442,2]
[407751681,1772754633150,-151.0,0.00017442,2]
[407751682,1772754633160,-151.0,0.00017442,2]
[407751683,1772754633169,-151.0,0.00017442,2]
[407751684,1772754633179,-406.767116,0.00017442,2]
[407751685,1772754633188,-406.767116,0.00017442,2]
[407751686,1772754633197,-406.767116,0.00017442,2]
[407751687,1772754633206,-406.767116,0.00017442,2]
[407751688,1772754633215,-220.556623,0.00017442,2]
[407751689,1772754633224,-220.556623,0.00017442,2]
[407751690,1772754633233,-220.556623,0.00017442,2]
[407751691,1772754633243,-220.556623,0.00017442,2]
[407751692,1772754633252,-2881.7,0.00017442,2]
[407751693,1772754633262,-5181.15,0.00017442,2]
[407751694,1772754633272,-1111.92,0.00017512,2]
[407751695,1772754633281,-186.23,0.000176,2]
[407751696,1772754633291,-7301.40716624,0.00017691,2]
[407751697,1772754633301,-166.66,0.00017773,2]
[407751698,1772754633310,-200.0,0.00017777,2]
[407751699,1772754633320,-1111.92,0.00017786,2]
[407751700,1772754633330,-307.0,0.00017797,2]
[407751701,1772754633341,-800.0,0.00017808,2]
[407751702,1772754633353,-1371.86101166,0.00017854,2]
[407751703,1772754633362,-1889.11386187,0.00017859,2]
[407751704,1772754633372,-205.79172239,0.00017859,2]
[407751705,1772754633381,-1000.0,0.00017859,2]
[407751706,1772754633391,-747.8093786,0.00017859,2]
[407751707,1772754633400,-599.60298507,0.00017859,2]
[407751708,1772754633409,-250.0,0.00017859,2]
[407751709,1772754633418,-250.0,0.00017859,2]
[407751710,1772754633427,-250.0,0.00017859,2]
[407751711,1772754633436,-250.0,0.00017859,2]
[407751712,1772754633446,-250.0,0.00017859,2]
[407751713,1772754633455,-250.0,0.00017859,2]
[407751714,1772754633465,-500.0,0.00017859,2]
[407751715,1772754633474,-693.3919763,0.00017859,2]
[407751716,1772754633485,-500.0,0.00017859,2]
[407751717,1772754633496,-500.0,0.00017859,2]
[407751718,1772754633506,-262.90206542,0.00017859,2]
[407751719,1772754633516,-500.0,0.00017859,2]
[407751720,1772754633526,-209.40437685,0.00017859,2]
[407751721,1772754633535,-174.61919141,0.00017859,2]
[407751722,1772754633544,-188.04392138,0.00017859,2]
[407751723,1772754633553,-743.50770149,0.00017859,2]
[407751724,1772754633563,-269.917619,0.00017859,2]
[407751725,1772754633573,-500.0,0.00017859,2]
[407751726,1772754633582,-500.0,0.00017859,2]
[407751727,1772754633592,-500.0,0.00017859,2]
[407751728,1772754633602,-500.0,0.00017859,2]
[407751729,1772754633612,-500.0,0.00017859,2]
[407751730,1772754633621,-500.0,0.00017859,2]
[407751731,1772754633630,-500.0,0.00017859,2]
[407751732,1772754633641,-500.0,0.00017859,2]
[407751733,1772754633650,-500.0,0.00017859,2]
[407751734,1772754633659,-500.0,0.00017859,2]
[407751735,1772754633669,-500.0,0.00017859,2]
[407751736,1772754633678,-186.23,0.0001787,2]
[407751737,1772754633687,-1548.53,0.000179,2]
[407751738,1772754633697,-719.04747942,0.00017914,2]
[407751739,1772754633706,-162.48080864,0.00017915,2]
[407751740,1772754633716,-5000.0,0.0001793,2]
[407751741,1772754633731,-745.65223616,0.00017969,2]
[407751742,1772754633740,-5798.32399391,0.00018009,2]
[407751743,1772754633749,-773.2413689,0.00018024,2]
[407751744,1772754633759,-7301.40716624,0.00018057,2]
[407751745,1772754633771,-1111.92,0.0001806,2]
[407751746,1772754633781,-801.85129955,0.00018079,2]
[407751747,1772754633791,-600.0,0.00018082,7]
[407751748,1772754633801,-2100.0,0.00018082,7]
[407751749,1772754633810,-420.0,0.00018092,2]
[407751750,1772754633819,-831.51979763,0.00018134,2]
[407751751,1772754633829,-739.62,0.00018139,2]
[407751752,1772754633838,-500.0,0.0001814,2]
[407751753,1772754633848,-186.23,0.0001814,2]
[407751754,1772754633857,-300.0,0.0001814,2]
[407751755,1772754633867,-1680.0,0.00018182,2]
[407751756,1772754633877,-862.28603014,0.00018189,2]
[407751757,1772754633886,-1752.24,0.00018206,2]
[407751758,1772754633896,-204.77558147,0.00018213,2]
[407751759,1772754633905,-350.0,0.0001824,2]
[407751760,1772754633914,-894.19061326,0.00018244,2]
[407751761,1772754633924,-1062.00844867,0.00018246,2]
[407751762,1772754633933,-307.46344183,0.00018283,2]
[407751763,1772754633943,-927.27566595,0.00018299,2]
[407751764,1772754633952,-3134.0,0.00018301,2]
[407751765,1772754633961,-2509.0,0.00018301,2]
[407751766,1772754633971,-166.66,0.00018307,2]
[407751767,1772754633980,-200.0,0.00018325,2]
[407751768,1772754633990,-250.0,0.00018327,2]
[407751769,1772754633999,-1111.92,0.00018334,2]
[407751770,1772754634008,-961.58486559,0.00018354,2]
[407751771,1772754634018,-1000.0,0.00018356,7]
[407751772,1772754634027,-1371.86101166,0.00018365,2]
[407751773,1772754634045,-2132.0,0.000184,2]
[407751774,1772754634057,-1000.0,0.00018407,2]
[407751775,1772754634067,-272.62944185,0.00018407,2]
[407751776,1772754634077,-181.08010149,0.00018407,2]
[407751777,1772754634086,-500.0,0.00018407,2]
[407751778,1772754634096,-997.16350561,0.00018409,2]
[407751779,1772754634106,-186.23,0.0001841,2]
[407751780,1772754634116,-7301.40716624,0.00018424,2]
[407751781,1772754634125,-151.0,0.00018429,2]
[407751782,1772754634135,-5798.32399391,0.00018482,2]
[407751783,1772754634144,-350.0,0.00018494,2]
[407751784,1772754634154,-162.48080864,0.00018576,2]
[407751785,1772754634164,-500.0,0.00018603,2]
[407751786,1772754634174,-1111.92,0.00018608,2]
[407751787,1772754634184,-203.14,0.00018659,2]
[407751788,1772754634193,-406.767116,0.0001868,2]
[407751789,1772754634203,-406.767116,0.0001868,2]
[407751790,1772754634213,-406.767116,0.0001868,2]
[407751791,1772754634222,-406.767116,0.0001868,2]
[407751792,1772754634232,-186.23,0.0001868,2]
[407751793,1772754634241,-7301.40716624,0.0001879,2]
[407751794,1772754634251,-166.66,0.00018841,2]
[407751795,1772754634261,-200.0,0.00018873,2]
[407751796,1772754634271,-151.0,0.00018873,2]